bitfinex-derivatives/quotes_BTCF0:USTF0_20250926
["timestamp","ask_amount","ask_price","bid_price","bid_amount"]
[1758879538662,1.36233206,109530.0,109520.0,0.04396]
[1758879538863,1.83055608,109530.0,109520.0,0.04396]
[1758879539064,1.36233206,109530.0,109520.0,0.04396]
[1758879539274,1.79774868,109530.0,109520.0,0.04396]
[1758879540069,1.83055608,109530.0,109520.0,0.04396]
[1758879540571,1.79774868,109530.0,109520.0,0.04396]
[1758879540873,1.79774868,109530.0,109520.0,0.008]
[1758879541776,1.83055608,109530.0,109520.0,0.008]
[1758879542073,1.79774868,109530.0,109520.0,0.008]
[1758879547671,1.32952466,109530.0,109520.0,0.008]
[1758879547872,1.79774868,109530.0,109520.0,0.008]
[1758879548676,0.95174868,109530.0,109520.0,0.008]
[1758879548885,1.79770868,109530.0,109520.0,0.02068]
[1758879549683,1.79770868,109530.0,109520.0,0.008]
[1758879551180,1.32948466,109530.0,109520.0,0.008]
[1758879551381,1.79770868,109530.0,109520.0,0.008]
[1758879551681,0.95174868,109530.0,109520.0,0.008]
[1758879551881,1.79766868,109530.0,109520.0,0.008]
[1758879554581,1.32944466,109530.0,109520.0,0.008]
[1758879554778,1.79766868,109530.0,109520.0,0.008]
[1758879556092,1.32944466,109530.0,109520.0,0.008]
[1758879556275,1.94906868,109530.0,109520.0,0.04318]
[1758879556784,1.79766868,109530.0,109520.0,0.04318]
[1758879556983,1.79766868,109530.0,109520.0,0.02068]
[1758879557883,1.79766868,109530.0,109520.0,0.04318]
[1758879558271,1.79766868,109530.0,109520.0,0.02068]
[1758879558588,1.79766868,109530.0,109520.0,0.008]
[1758879562990,1.83047608,109530.0,109520.0,0.008]
[1758879564194,1.36225206,109530.0,109520.0,0.008]
[1758879564489,1.83047608,109530.0,109520.0,0.008]
[1758879565392,1.36225206,109530.0,109520.0,0.008]
[1758879565688,1.83047608,109530.0,109520.0,0.008]
[1758879565894,1.32944466,109530.0,109520.0,0.008]
[1758879566090,1.79766868,109530.0,109520.0,0.008]
[1758879566684,1.79766868,109530.0,109520.0,0.0209]
[1758879566991,1.79766868,109530.0,109520.0,0.04408]
[1758879567987,0.95174868,109530.0,109520.0,0.04408]
[1758879568188,1.79930868,109530.0,109520.0,0.04408]
[1758879571790,1.33108466,109530.0,109520.0,0.04408]
[1758879571992,1.79930868,109530.0,109520.0,0.04408]
[1758879572685,1.79930868,109530.0,109520.0,0.008]
[1758879573590,1.79930868,109530.0,109520.0,0.0209]
[1758879575996,1.79930868,109530.0,109520.0,0.008]
[1758879576402,1.79930868,109530.0,109520.0,0.0209]
[1758879576992,1.79930868,109530.0,109520.0,0.008]
[1758879578498,1.79930868,109530.0,109520.0,0.006]
[1758879578699,0.0912253,109520.0,109510.0,0.03586]
[1758879578891,0.94257379,109520.0,109510.0,0.03586]
[1758879579090,0.47434977,109520.0,109510.0,0.03586]
[1758879579597,0.94257379,109520.0,109510.0,0.03586]
[1758879579899,1.01710838,109520.0,109510.0,0.03686]
[1758879580305,1.01710838,109520.0,109510.0,0.03786]
[1758879583303,0.54888436,109520.0,109510.0,0.03786]
[1758879583497,1.01710838,109520.0,109510.0,0.03786]
[1758879586901,0.54888436,109520.0,109510.0,0.03786]
[1758879587104,1.01710838,109520.0,109510.0,0.03786]
[1758879587696,0.54888436,109520.0,109510.0,0.03786]
[1758879591806,0.09685906,109520.0,109510.0,0.99731782]
[1758879592005,0.94361906,109520.0,109510.0,0.99731782]
[1758879592504,0.94361906,109520.0,109510.0,1.00635569]
[1758879593096,0.02232447,109520.0,109510.0,1.00635569]
[1758879593398,0.3608,109530.0,109520.0,0.1273055]
[1758879593611,1.23030473,109530.0,109520.0,0.59552952]
[1758879594192,0.38362473,109530.0,109520.0,0.59552952]
[1758879594395,0.38362473,109530.0,109520.0,0.99552952]
[1758879594604,0.3608,109530.0,109520.0,1.22930624]
[1758879594806,0.84672,109530.0,109520.0,1.22930624]
[1758879595805,0.4520092,109540.0,109530.0,0.1266472]
[1758879595994,1.32153953,109540.0,109530.0,0.47764757]
[1758879596406,1.23033033,109540.0,109530.0,0.47764757]
[1758879596906,1.24133033,109540.0,109530.0,0.47764757]
[1758879597805,1.24333033,109540.0,109530.0,0.47764757]
[1758879598503,1.5943307,109540.0,109530.0,0.47764757]
[1758879598810,1.5947307,109540.0,109530.0,0.47764757]
[1758879599400,1.24365033,109540.0,109530.0,0.47764757]
[1758879599601,1.5946507,109540.0,109530.0,0.47764757]
[1758879599917,1.5836507,109540.0,109530.0,0.47764757]
[1758879600205,1.23765033,109540.0,109530.0,0.1266472]
[1758879600410,1.6798595,109540.0,109530.0,0.47764757]
[1758879600710,1.6798595,109540.0,109530.0,0.38643037]
[1758879600908,1.6778595,109540.0,109530.0,0.38643037]
[1758879601313,1.6778595,109540.0,109530.0,0.47764757]
[1758879602216,1.6778595,109540.0,109530.0,0.1266472]
[1758879602415,1.6798595,109540.0,109530.0,0.47764757]
[1758879602716,1.6798595,109540.0,109530.0,0.38643037]
[1758879602903,1.33485913,109540.0,109530.0,0.38643037]
[1758879603109,2.03685987,109540.0,109530.0,0.03543]
[1758879603413,1.33485913,109540.0,109530.0,0.03543]
[1758879603611,2.03685987,109540.0,109530.0,0.38643037]
[1758879604609,2.03685987,109540.0,109530.0,0.03543]
[1758879605101,1.33485913,109540.0,109530.0,0.03543]
[1758879605313,2.03685987,109540.0,109530.0,0.03543]
[1758879605515,2.01404954,109540.0,109530.0,0.03543]
[1758879605817,2.03682441,109540.0,109530.0,0.03543]
[1758879606420,1.33482367,109540.0,109530.0,0.03543]
[1758879606622,2.03682441,109540.0,109530.0,0.03543]
[1758879606919,2.03682441,109540.0,109530.0,0.01385]
[1758879607320,2.03682441,109540.0,109530.0,0.03511]
[1758879607817,1.33482367,109540.0,109530.0,0.03511]
[1758879608118,2.03682441,109540.0,109530.0,0.03511]
[1758879608307,1.33482367,109540.0,109530.0,0.03511]
[1758879608509,2.03682441,109540.0,109530.0,0.03511]
[1758879609121,1.33482367,109540.0,109530.0,0.03511]
[1758879609421,2.03682441,109540.0,109530.0,0.03511]
[1758879613225,1.33482367,109540.0,109530.0,0.03511]
[1758879613425,2.03682441,109540.0,109530.0,0.03511]
[1758879613923,1.24777487,109540.0,109530.0,0.38611037]
[1758879614126,1.24777487,109540.0,109530.0,0.47732737]
[1758879614626,1.59877524,109540.0,109530.0,0.47732737]
[1758879614829,1.24777487,109540.0,109530.0,0.47732737]
[1758879615028,0.39657487,109540.0,109530.0,0.47732737]
[1758879615326,1.24813085,109540.0,109530.0,0.47732737]
[1758879615519,1.3165686,109540.0,109530.0,0.38611037]
[1758879615720,1.66756897,109540.0,109530.0,0.38611037]
[1758879616226,1.69033982,109540.0,109530.0,0.38611037]
[1758879616427,1.67933982,109540.0,109530.0,0.38611037]
[1758879616728,1.68433982,109540.0,109530.0,0.38611037]
[1758879617124,1.32833945,109540.0,109530.0,0.38611037]
[1758879617319,1.67733982,109540.0,109530.0,0.38611037]
[1758879617515,1.32633945,109540.0,109530.0,0.38611037]
[1758879617720,1.67733982,109540.0,109530.0,0.38611037]
[1758879617915,2.02834019,109540.0,109530.0,0.03511]
[1758879618427,1.67733982,109540.0,109530.0,0.38611037]
[1758879618630,1.68833982,109540.0,109530.0,0.38611037]
[1758879619427,1.68833982,109540.0,109530.0,0.03511]
[1758879619831,1.68833982,109540.0,109530.0,0.38611037]
[1758879620421,1.33733945,109540.0,109530.0,0.38611037]
[1758879620631,1.68833982,109540.0,109530.0,0.38611037]
[1758879621231,0.48577945,109540.0,109530.0,0.38611037]
[1758879621432,1.33729945,109540.0,109530.0,0.38611037]
[1758879621732,1.69029982,109540.0,109530.0,0.38611037]
[1758879624126,1.69029982,109540.0,109530.0,0.03511]
[1758879624327,1.69029982,109540.0,109530.0,0.38611037]
[1758879624537,1.33929945,109540.0,109530.0,0.38611037]
[1758879625022,1.69029982,109540.0,109530.0,0.38611037]
[1758879626832,1.69034249,109540.0,109530.0,0.38611037]
[1758879627637,2.04134286,109540.0,109530.0,0.01385]
[1758879627832,0.091217,109530.0,109520.0,0.03452]
[1758879628129,0.82583089,109530.0,109520.0,0.38552037]
[1758879629334,0.47483052,109530.0,109520.0,0.38552037]
[1758879629528,0.82583089,109530.0,109520.0,0.38552037]
[1758879629731,0.83083089,109530.0,109520.0,0.38552037]
[1758879630235,0.47983052,109530.0,109520.0,0.38552037]
[1758879630435,0.83083089,109530.0,109520.0,0.38552037]
[1758879630822,0.83083089,109530.0,109520.0,0.03452]
[1758879631027,0.83083089,109530.0,109520.0,0.38552037]
[1758879631433,0.83683089,109530.0,109520.0,0.38552037]
[1758879631933,0.83883089,109530.0,109520.0,0.38552037]
[1758879634335,0.83883089,109530.0,109520.0,0.03452]
[1758879634533,0.83883089,109530.0,109520.0,0.38552037]
[1758879635938,0.83883089,109530.0,109520.0,0.03452]
[1758879636137,0.83883089,109530.0,109520.0,0.38552037]
[1758879636636,0.48783052,109530.0,109520.0,0.03452]
[1758879636828,0.83883089,109530.0,109520.0,0.03452]
[1758879637025,0.83883089,109530.0,109520.0,0.38552037]
[1758879638435,0.83683089,109530.0,109520.0,0.38552037]
[1758879639435,0.83883089,109530.0,109520.0,0.38552037]
[1758879639831,0.83883089,109530.0,109520.0,0.36390037]
[1758879640034,0.0912255,109520.0,109510.0,0.0343]
[1758879640236,0.0912336,109510.0,109500.0,0.03534]
[1758879640535,0.82584749,109510.0,109500.0,0.38634037]
[1758879640932,0.82584749,109510.0,109500.0,0.03534]
[1758879641134,1.17684786,109510.0,109500.0,4e-05]
[1758879641433,1.57684786,109510.0,109500.0,4e-05]
[1758879641633,1.23482037,109510.0,109500.0,4e-05]
[1758879641943,1.68714037,109510.0,109500.0,4e-05]
[1758879642540,1.33614,109510.0,109500.0,4e-05]
[1758879642735,1.68714037,109510.0,109500.0,0.01405]
[1758879642929,1.68714037,109510.0,109500.0,0.00204]
[1758879643532,1.33614,109510.0,109500.0,0.03667]
[1758879643736,1.33614,109510.0,109500.0,0.38767037]
[1758879643937,1.68714037,109510.0,109500.0,0.38767037]
[1758879644238,1.67816749,109510.0,109500.0,0.00204]
[1758879644447,1.67816749,109510.0,109500.0,0.01505]
[1758879644741,1.67816749,109510.0,109500.0,0.03667]
[1758879645136,1.67816749,109510.0,109500.0,0.00204]
[1758879645337,2.02916786,109510.0,109500.0,0.00204]
[1758879645545,1.73653422,109510.0,109500.0,0.00204]
[1758879645741,2.43853496,109510.0,109500.0,0.00204]
[1758879645934,0.0912503,109490.0,109480.0,0.03463]
[1758879646242,1.70208273,109490.0,109470.0,0.03463]
[1758879646443,1.70208273,109490.0,109470.0,0.38563037]
[1758879646444,0.71180037,109480.0,109470.0,0.38563037]
[1758879646645,0.3608,109480.0,109470.0,0.03463]
[1758879646944,0.3608,109480.0,109470.0,0.38563037]
[1758879647142,0.3608,109480.0,109470.0,0.03463]
[1758879647346,0.4390586,109480.0,109470.0,0.03463]
[1758879647850,0.3478,109480.0,109470.0,0.38563037]
[1758879648144,0.3478,109480.0,109470.0,0.03463]
[1758879648347,0.3438,109480.0,109470.0,0.38563037]
[1758879648648,0.69480037,109480.0,109470.0,0.03463]
[1758879648945,0.69480037,109480.0,109470.0,0.38563037]
[1758879649146,0.69480037,109480.0,109470.0,0.03863]
[1758879649346,0.69480037,109480.0,109470.0,0.38955037]
[1758879649548,0.3438,109480.0,109470.0,0.38955037]
[1758879649742,1.24786157,109490.0,109470.0,0.38955037]
[1758879649935,1.62184393,109490.0,109480.0,0.38563037]
[1758879650136,0.40464356,109490.0,109480.0,0.73663074]
[1758879650347,0.89898157,109490.0,109480.0,1.13663074]
[1758879650744,0.89898157,109490.0,109480.0,0.43463]
[1758879650945,0.89898157,109490.0,109480.0,1.49743074]
[1758879651441,0.3608,109500.0,109490.0,0.01301]
[1758879651647,0.89762353,109520.0,109510.0,0.03463]
[1758879651846,0.47837528,109520.0,109510.0,0.38563037]
[1758879652046,1.35769528,109520.0,109510.0,0.38563037]
[1758879652648,1.33463556,109520.0,109510.0,0.38563037]
[1758879652848,1.80886113,109520.0,109510.0,0.03463]
[1758879653046,1.80886113,109520.0,109510.0,0.38563037]
[1758879653951,1.71763593,109520.0,109510.0,0.38563037]
[1758879654449,1.00583556,109520.0,109510.0,0.38563037]
[1758879654647,0.12659556,109520.0,109510.0,0.50277741]
[1758879654951,0.9323226,109520.0,109510.0,0.90277741]
[1758879655147,0.9323226,109520.0,109510.0,0.99401101]
[1758879655148,0.0530826,109520.0,109510.0,0.99401101]
[1758879655355,0.9353226,109520.0,109510.0,1.35481101]
[1758879655652,0.035,109520.0,109510.0,1.35481101]
[1758879655850,0.035,109520.0,109510.0,1.4461227]
[1758879656048,0.3608,109540.0,109530.0,0.50396741]
[1758879656347,1.2406,109540.0,109530.0,0.59518441]
[1758879656746,1.2406,109540.0,109530.0,0.127037]
[1758879657050,0.9018,109540.0,109530.0,0.59518441]
[1758879658153,0.022,109540.0,109530.0,1.35598441]
[1758879658339,0.90108,109540.0,109530.0,1.35598441]
[1758879658545,0.001,109540.0,109530.0,1.35598441]
[1758879658746,0.52564141,109560.0,109530.0,1.35598441]
[1758879658747,0.3608,109560.0,109550.0,0.03582]
[1758879659049,0.3608,109560.0,109550.0,0.50396741]
[1758879659050,1.23076,109560.0,109550.0,0.50396741]
[1758879659845,1.3219522,109560.0,109550.0,0.05882]
[1758879660047,1.3259522,109560.0,109550.0,0.05882]
[1758879661450,2.19409961,109560.0,109550.0,0.023]
[1758879661654,2.21308193,109560.0,109550.0,0.023]
[1758879661855,2.2140819,109560.0,109550.0,0.03643]
[1758879662449,2.2140819,109560.0,109550.0,0.01743]
[1758879662650,2.2160819,109560.0,109550.0,0.01743]
[1758879663152,2.2180819,109560.0,109550.0,0.01343]
[1758879663954,0.0912006,109550.0,109540.0,0.01343]
[1758879664149,0.92014801,109550.0,109540.0,0.03582]
[1758879664346,0.4520006,109550.0,109540.0,0.03582]
[1758879665553,0.92014801,109550.0,109540.0,0.03982]
[1758879665753,0.94311388,109550.0,109540.0,0.004]
[1758879666051,0.94511388,109550.0,109540.0,0.01713]
[1758879666252,0.94525592,109550.0,109540.0,0.01713]
[1758879666859,0.94625592,109550.0,109540.0,0.01713]
[1758879667157,0.94625592,109550.0,109540.0,0.004]
[1758879667465,1.34625327,109550.0,109540.0,0.004]
[1758879667657,1.3678483,109550.0,109540.0,0.004]
[1758879668557,0.0912171,109530.0,109520.0,0.03641]
[1758879668763,1.3308171,109530.0,109520.0,0.03641]
[1758879669862,1.6916171,109530.0,109520.0,0.02343]
[1758879670062,2.15976451,109530.0,109520.0,0.02343]
[1758879670761,1.6916171,109530.0,109520.0,0.02343]
[1758879670966,2.18286475,109530.0,109520.0,0.02343]
[1758879671567,1.71471734,109530.0,109520.0,0.02343]
[1758879671776,2.18286475,109530.0,109520.0,0.04641]
[1758879672165,2.25559024,109530.0,109520.0,0.04641]
[1758879672366,2.25759024,109530.0,109520.0,0.04041]
[1758879672565,2.18486475,109530.0,109520.0,0.04041]
[1758879672969,2.18686475,109530.0,109520.0,0.03641]
[1758879673172,0.0912254,109520.0,109510.0,0.03641]
[1758879673476,0.92017281,109520.0,109510.0,0.03641]
[1758879673868,0.47512943,109520.0,109510.0,0.03641]
[1758879674073,0.94327684,109520.0,109510.0,0.03641]
[1758879674273,0.94527684,109520.0,109510.0,0.03641]
[1758879674465,0.92217281,109520.0,109510.0,0.03641]
[1758879675773,0.92217281,109520.0,109510.0,0.04041]
[1758879675774,0.4540254,109520.0,109510.0,0.04041]
[1758879678763,0.46299262,109520.0,109510.0,0.04041]
[1758879679173,0.4861487,109520.0,109510.0,0.04041]
[1758879680072,0.95429611,109520.0,109510.0,0.04041]
[1758879680270,0.4861487,109520.0,109510.0,0.04041]
[1758879680470,0.47718148,109520.0,109510.0,0.04041]
[1758879682877,0.4772033,109520.0,109510.0,0.04041]
[1758879683572,0.4772033,109520.0,109510.0,0.50855741]
[1758879683774,1.3542033,109520.0,109510.0,0.50855741]
[1758879684472,1.3542033,109520.0,109510.0,0.04041]
[1758879687175,0.9934033,109520.0,109510.0,0.04041]
[1758879694181,0.9934033,109520.0,109510.0,0.04029]
[1758879695383,0.9934033,109520.0,109510.0,0.50843741]
[1758879695581,0.9934033,109520.0,109510.0,0.04029]
[1758879695883,0.9934033,109520.0,109510.0,0.50843741]
[1758879697084,0.9934033,109520.0,109510.0,0.04029]
[1758879698785,0.9934033,109520.0,109510.0,0.50843741]
[1758879699489,0.9934033,109520.0,109510.0,0.04029]
[1758879700080,0.9904433,109520.0,109510.0,0.04029]
[1758879701790,1.3512433,109520.0,109510.0,0.04029]
[1758879703082,1.81939071,109520.0,109510.0,0.004]
[1758879703685,1.81939071,109520.0,109510.0,0.0178]
[1758879703885,1.81939071,109520.0,109510.0,0.03899]
[1758879705690,2.21939071,109520.0,109510.0,0.004]
[1758879706293,1.7512433,109520.0,109510.0,0.0178]
[1758879706491,2.21939071,109520.0,109510.0,0.0178]
[1758879707488,1.7512433,109520.0,109510.0,0.0178]
[1758879707693,2.21939071,109520.0,109510.0,0.0178]
[1758879708391,1.7512433,109520.0,109510.0,0.03899]
[1758879708590,1.7512433,109520.0,109510.0,0.0178]
[1758879708789,1.7490833,109520.0,109510.0,0.03899]
[1758879709092,2.21723071,109520.0,109510.0,0.03891]
[1758879709287,1.7490833,109520.0,109510.0,0.03891]
[1758879709484,2.21723071,109520.0,109510.0,0.03891]
[1758879710694,2.21727071,109520.0,109510.0,0.03891]
[1758879711397,2.21727071,109520.0,109510.0,0.00392]
[1758879713696,1.7491233,109520.0,109510.0,0.00392]
[1758879713889,2.21727071,109520.0,109510.0,0.00392]
[1758879714594,2.451538,109520.0,109510.0,0.00392]
[1758879719201,2.451538,109520.0,109510.0,0.01761]
[1758879719898,2.451538,109520.0,109510.0,0.00392]
[1758879721204,1.7491233,109520.0,109510.0,0.00392]
[1758879721501,2.451538,109520.0,109510.0,0.00392]
[1758879721702,1.7491233,109520.0,109510.0,0.00392]
[1758879721901,1.7491233,109520.0,109510.0,0.01761]
[1758879722102,2.451538,109520.0,109510.0,0.01761]
[1758879723606,2.451538,109520.0,109510.0,0.00392]
[1758879728410,2.451538,109520.0,109510.0,0.01686]
[1758879728597,2.451538,109520.0,109510.0,0.03896]
[1758879728908,2.451538,109520.0,109510.0,0.01686]
[1758879730409,1.579618,109520.0,109510.0,0.01686]
[1758879730617,2.451178,109520.0,109510.0,0.39016735]
[1758879731313,1.7487633,109520.0,109510.0,0.39016735]
[1758879731514,2.451178,109520.0,109510.0,0.03896]
[1758879733517,1.7487633,109520.0,109510.0,0.03896]
[1758879733813,2.451178,109520.0,109510.0,0.03896]
[1758879734014,1.7487633,109520.0,109510.0,0.03896]
[1758879734313,2.451178,109520.0,109510.0,0.03896]
[1758879735808,1.7487633,109520.0,109510.0,0.03896]
[1758879736014,2.451178,109520.0,109510.0,0.03896]
[1758879738514,2.451178,109520.0,109510.0,0.00392]
[1758879738914,1.7487633,109520.0,109510.0,0.00392]
[1758879739112,2.451178,109520.0,109510.0,0.00392]
[1758879740519,1.7487633,109520.0,109510.0,0.00392]
[1758879740815,2.451178,109520.0,109510.0,0.00392]
[1758879742121,1.7487633,109520.0,109510.0,0.00392]
[1758879742320,2.451178,109520.0,109510.0,0.00392]
[1758879744421,2.451178,109520.0,109490.0,0.01313]
[1758879744422,0.091243,109500.0,109490.0,0.01313]
[1758879744618,2.0485556,109500.0,109490.0,0.01313]
[1758879744923,2.0485556,109500.0,109490.0,0.03627]
[1758879745121,1.3461409,109500.0,109490.0,0.03627]
[1758879745323,2.0485556,109500.0,109490.0,0.03627]
[1758879745618,2.0485556,109500.0,109490.0,0.03727]
[1758879745820,2.0485556,109500.0,109490.0,0.01413]
[1758879746321,1.3461409,109500.0,109490.0,0.03727]
[1758879746508,1.69734825,109500.0,109490.0,0.03727]
[1758879746712,1.69734825,109500.0,109490.0,0.38847735]
[1758879746911,1.69734825,109500.0,109490.0,0.04527]
[1758879747117,1.3461409,109500.0,109490.0,0.04527]
[1758879747318,1.69734825,109500.0,109490.0,0.04527]
[1758879750520,2.05814825,109500.0,109490.0,0.04527]
[1758879751716,2.4093556,109500.0,109490.0,0.04527]
[1758879752418,1.7069409,109500.0,109490.0,0.04527]
[1758879752623,2.4093556,109500.0,109490.0,0.04527]
[1758879753328,2.05814825,109500.0,109490.0,0.04527]
[1758879753924,2.05814825,109500.0,109490.0,0.04519]
[1758879755225,2.4093556,109500.0,109490.0,0.04519]
[1758879755530,2.4093556,109500.0,109490.0,0.02205]
[1758879757223,2.4093556,109500.0,109490.0,0.009]
[1758879758728,2.8093556,109500.0,109490.0,0.009]
[1758879759027,3.18185198,109500.0,109490.0,0.009]
[1758879759226,0.0912596,109480.0,109470.0,0.01294]
[1758879759426,2.0467722,109480.0,109470.0,0.01294]
[1758879760222,2.4075722,109480.0,109470.0,0.01294]
[1758879760727,2.4075722,109480.0,109470.0,0.02694]
[1758879760926,2.1051575,109480.0,109470.0,0.014]
[1758879761130,2.8075722,109480.0,109470.0,0.016]
[1758879761529,2.81692335,109480.0,109470.0,0.016]
[1758879761931,2.41692335,109480.0,109470.0,0.016]
[1758879762631,1.78826756,109480.0,109470.0,0.02961]
[1758879762933,2.49068226,109480.0,109470.0,0.02961]
[1758879766632,1.78826756,109480.0,109470.0,0.02961]
[1758879766833,2.49068226,109480.0,109470.0,0.02961]
[1758879768535,1.78826756,109480.0,109470.0,0.02961]
[1758879768725,2.49068226,109480.0,109470.0,0.02961]
[1758879769127,2.49068226,109480.0,109470.0,0.02957]
[1758879772136,1.78826756,109480.0,109470.0,0.02957]
[1758879772330,2.49068226,109480.0,109470.0,0.02957]
[1758879775132,1.78826756,109480.0,109470.0,0.02957]
[1758879775332,2.49068226,109480.0,109470.0,0.02957]
[1758879776540,2.25688882,109480.0,109470.0,0.02957]
[1758879777629,1.38776882,109480.0,109470.0,0.02957]
[1758879777833,2.25248882,109480.0,109470.0,0.02957]
[1758879779644,1.38776882,109480.0,109470.0,0.05093]
[1758879779947,1.78314756,109480.0,109470.0,0.51955126]
[1758879780134,1.78314756,109480.0,109470.0,0.05093]
[1758879780540,2.25176882,109480.0,109470.0,0.05093]
[1758879781142,0.90979641,109480.0,109470.0,0.05093]
[1758879781443,2.24241767,109480.0,109470.0,0.05093]
[1758879782245,1.77379641,109480.0,109470.0,0.05093]
[1758879782541,2.24241767,109480.0,109470.0,0.05093]
[1758879782844,1.77379641,109480.0,109470.0,0.05093]
[1758879783046,2.25178349,109480.0,109470.0,0.05093]
[1758879783638,2.25178349,109480.0,109470.0,0.02957]
[1758879784246,1.78316223,109480.0,109470.0,0.02957]
[1758879784542,2.25158349,109480.0,109470.0,0.05093]
[1758879784954,1.78296223,109480.0,109470.0,0.05093]
[1758879785248,2.25158349,109480.0,109470.0,0.05093]
[1758879785450,2.25158349,109480.0,109470.0,0.01596]
[1758879785942,2.25158349,109480.0,109470.0,0.02863]
[1758879786552,2.25158349,109480.0,109470.0,0.05158]
[1758879786947,1.78296223,109480.0,109470.0,0.05158]
[1758879787147,2.25158349,109480.0,109470.0,0.05158]
[1758879787351,1.78296223,109480.0,109470.0,0.05158]
[1758879787554,2.25158349,109480.0,109470.0,0.05158]
[1758879788443,2.25158349,109480.0,109470.0,0.02863]
[1758879789648,1.78296223,109480.0,109470.0,0.05158]
[1758879789856,2.25158349,109480.0,109470.0,0.05158]
[1758879790455,2.25158349,109480.0,109470.0,0.02863]
[1758879791454,1.78296223,109480.0,109470.0,0.05158]
[1758879791655,2.25158349,109480.0,109470.0,0.05158]
[1758879793851,2.25158349,109480.0,109470.0,0.02863]
[1758879800059,2.25158349,109480.0,109470.0,0.01596]
[1758879802462,2.25158349,109480.0,109470.0,0.02863]
[1758879804363,2.25158349,109480.0,109470.0,0.01596]
[1758879818672,2.2730154,109480.0,109470.0,0.01596]
[1758879819265,2.25158349,109480.0,109470.0,0.01596]
[1758879819565,2.2724814,109480.0,109470.0,0.01596]
[1758879822281,1.80386014,109480.0,109470.0,0.01596]
[1758879822578,2.2724814,109480.0,109470.0,0.01596]
[1758879828587,2.3052888,109480.0,109470.0,0.01596]
[1758879832384,2.77391006,109480.0,109470.0,0.01596]
[1758879832584,2.3052888,109480.0,109470.0,0.01596]
[1758879833289,0.0912761,109460.0,109450.0,0.01365]
[1758879833482,1.335254,109460.0,109450.0,0.03642]
[1758879834688,1.35638206,109460.0,109450.0,0.03642]
[1758879835688,1.84600332,109460.0,109450.0,0.03642]
[1758879838594,1.72892419,109460.0,109450.0,0.03642]
[1758879839888,1.72892419,109460.0,109450.0,0.38796213]
[1758879840283,1.356254,109460.0,109450.0,0.38796213]
[1758879840488,1.70779613,109460.0,109450.0,0.38796213]
[1758879841094,1.70779613,109460.0,109450.0,0.03642]
[1758879841395,1.356254,109460.0,109450.0,0.38796213]
[1758879841589,1.70779613,109460.0,109450.0,0.38796213]
[1758879842193,0.84779613,109460.0,109450.0,0.38796213]
[1758879842397,1.70683613,109460.0,109450.0,0.38796213]
[1758879844293,1.70683613,109460.0,109450.0,0.38792213]
[1758879844595,0.84779613,109460.0,109450.0,0.03638]
[1758879844795,1.70691613,109460.0,109450.0,0.38792213]
[1758879847707,1.70691613,109460.0,109450.0,0.03638]
[1758879847905,2.05845826,109460.0,109450.0,0.03638]
[1758879848410,2.05845826,109460.0,109450.0,0.03634]
[1758879852911,2.05845826,109460.0,109450.0,0.01361]
[1758879853410,2.05845826,109460.0,109450.0,0.03634]
[1758879855413,2.05845826,109460.0,109450.0,0.01361]
[1758879856310,2.05845826,109460.0,109450.0,0.03634]
[1758879857016,2.41925826,109460.0,109450.0,0.03634]
[1758879859615,1.716174,109460.0,109450.0,0.03634]
[1758879859819,2.06615613,109460.0,109450.0,0.38788213]
[1758879861620,2.06615613,109460.0,109450.0,0.03634]
[1758879861819,2.06615613,109460.0,109450.0,0.38788213]
[1758879862419,2.06615613,109460.0,109450.0,0.03634]
[1758879862613,2.41769826,109460.0,109450.0,0.38788213]
[1758879863218,2.41769826,109460.0,109450.0,0.03634]
[1758879863418,2.41769826,109460.0,109450.0,0.38788213]
[1758879864412,1.714614,109460.0,109450.0,0.38788213]
[1758879864607,2.41769826,109460.0,109450.0,0.38788213]
[1758879865619,2.06615613,109460.0,109450.0,0.38788213]
[1758879866422,1.714614,109460.0,109450.0,0.03634]
[1758879866718,2.06615613,109460.0,109450.0,0.38788213]
[1758879869326,2.06615613,109460.0,109450.0,0.03634]
[1758879869515,2.06615613,109460.0,109450.0,0.38788213]
[1758879870115,1.20859613,109460.0,109450.0,0.38788213]
[1758879870320,2.06615613,109460.0,109450.0,0.38788213]
[1758879871523,0.857054,109460.0,109450.0,0.38788213]
[1758879871722,1.714614,109460.0,109450.0,0.38788213]
[1758879873320,0.7657779,109460.0,109450.0,0.47916673]
[1758879873523,1.6233379,109460.0,109450.0,0.47916673]
[1758879873725,0.9017379,109460.0,109450.0,1.24891575]
[1758879874525,0.9017379,109460.0,109450.0,0.89737362]
[1758879874821,0.9017379,109460.0,109450.0,1.25817362]
[1758879875215,0.1354541,109460.0,109450.0,1.60971575]
[1758879875522,0.9930141,109460.0,109450.0,1.60971575]
[1758879876219,0.9930141,109460.0,109450.0,0.54583149]
[1758879876427,0.9930141,109460.0,109450.0,0.80608902]
[1758879876723,1.3538141,109460.0,109450.0,0.45454689]
[1758879877318,1.3538141,109460.0,109450.0,0.80608902]
[1758879877918,0.9016979,109460.0,109450.0,0.89737362]
[1758879878126,0.1354541,109460.0,109450.0,0.89737362]
[1758879878326,0.9929741,109460.0,109450.0,0.54583149]
[1758879878524,0.9929741,109460.0,109450.0,0.89737362]
[1758879878728,0.9929741,109460.0,109450.0,0.54583149]
[1758879878919,0.9929741,109460.0,109450.0,0.89737362]
[1758879879223,0.9929741,109460.0,109450.0,1.25817362]
[1758879879425,0.9929741,109460.0,109450.0,0.85817362]
[1758879880022,0.9929741,109460.0,109450.0,1.20971575]
[1758879880326,0.9929741,109460.0,109450.0,0.85817362]
[1758879880820,0.9929341,109460.0,109450.0,0.85817362]
[1758879881627,0.9929341,109460.0,109450.0,0.50663149]
[1758879881824,0.9929341,109460.0,109450.0,0.85817362]
[1758879885132,0.9016579,109460.0,109450.0,0.85817362]
[1758879885628,0.9016579,109460.0,109450.0,1.60971575]
[1758879885629,0.0441779,109460.0,109450.0,1.60971575]
[1758879885930,0.07375891,109480.0,109470.0,0.1275879]
[1758879886134,0.85748,109480.0,109470.0,0.83067216]
[1758879886327,0.85748,109480.0,109470.0,0.1275879]
[1758879886328,0.87381,109480.0,109470.0,0.1275879]
[1758879887030,1.31661173,109480.0,109470.0,0.38786213]
[1758879887231,0.9680696,109480.0,109470.0,0.38786213]
[1758879887431,1.32761173,109480.0,109470.0,0.38786213]
[1758879887728,1.32761173,109480.0,109470.0,0.03632]
[1758879887729,2.11436968,109480.0,109470.0,0.03632]
[1758879887924,2.11336968,109480.0,109470.0,0.03632]